fUST/lending_fUST_20250601
["ID","MTS","AMOUNT","RATE_DAILY","PERIOD"]
[363540580,1748758233572,-300.99198803,0.00015409,2]
[363540581,1748758233581,-666.29830487,0.00015409,2]
[363540582,1748758233590,-666.29830487,0.00015409,2]
[363540583,1748758233599,-666.29830487,0.00015409,2]
[363540584,1748758233608,-666.29830487,0.00015409,2]
[363540585,1748758233618,-666.29830487,0.00015409,2]
[363540586,1748758233627,-666.29830487,0.00015409,2]
[363540587,1748758233636,-666.29830487,0.00015409,2]
[363540588,1748758233647,-666.29830487,0.00015409,2]
[363540589,1748758233656,-666.29830487,0.00015409,2]
[363540590,1748758233668,-666.29830487,0.00015409,2]
[363540591,1748758233683,-1282.58683967,0.00015409,2]
[363540592,1748758233693,-1282.58683967,0.00015409,2]
[363540593,1748758233703,-1282.58683967,0.00015409,2]
[363540594,1748758233712,-1282.58683967,0.00015409,2]
[363540595,1748758233723,-1282.58683967,0.00015409,2]
[363540596,1748758233733,-1282.58683967,0.00015409,2]
[363540597,1748758233743,-1282.58683967,0.00015409,2]
[363540598,1748758233752,-1282.58683967,0.00015409,2]
[363540599,1748758233762,-1282.58683967,0.00015409,2]
[363540600,1748758233772,-1282.58683967,0.00015409,2]
[363540601,1748758233782,-1306.21343935,0.00015409,2]
[363540602,1748758233792,-1306.21343935,0.00015409,2]
[363540603,1748758233801,-1306.21343935,0.00015409,2]
[363540604,1748758233811,-1306.21343935,0.00015409,2]
[363540605,1748758233822,-1306.21343935,0.00015409,2]
[363540606,1748758233832,-151.0,0.00015411,2]
[363540607,1748758233841,-500.0,0.00015411,2]
[363540608,1748758233851,-24900.0,0.00015413,2]
[363540609,1748758233861,-198.0,0.00015438,2]
[363540610,1748758233870,-500.0,0.00015438,2]
[363540611,1748758233880,-280.141521,0.00015466,2]
[363540612,1748758233891,-180.046883,0.00015546,2]
[363540613,1748758233901,-152.0,0.00016147,2]
[363540614,1748758233911,-2924.7548621,0.00016338,2]
[363540615,1748758233920,-612.72825677,0.0001637,2]
[363540616,1748758233930,-1910.13,0.0001639,3]
[363540617,1748758233940,-955.07,0.0001639,3]
[363540618,1748758233950,-477.53,0.0001639,3]
[363540619,1748758233960,-238.77,0.0001639,3]
[363540620,1748758233969,-716.32,0.0001639,3]
[363540621,1748758233979,-160.0,0.00016399,2]
[363540622,1748758233987,-50737.72579808,0.000164,2]
[363540623,1748758234061,1671.94309815,0.00015,2]
[363540639,1748758238860,-16978.47826632,0.000164,2]
[363540640,1748758238872,-160.0,0.00016419,2]
[363540641,1748758238883,-3820.26,0.00016428,3]
[363540642,1748758238896,-430.0,0.00016438,2]
[363540643,1748758238907,-430.0,0.00016438,2]
[363540645,1748758238919,-430.0,0.00016438,2]
[363540646,1748758238930,-430.0,0.00016438,2]
[363540647,1748758238942,-430.0,0.00016438,2]
[363540648,1748758238953,-430.0,0.00016438,2]
[363540649,1748758238964,-430.0,0.00016438,2]
[363540650,1748758238975,-430.0,0.00016438,2]
[363540651,1748758238986,-430.0,0.00016438,2]
[363540652,1748758238997,-430.0,0.00016438,2]
[363540653,1748758239010,-325.54153428,0.00016438,2]
[363540654,1748758239021,-430.0,0.00016438,2]
[363540655,1748758239033,-852.255,0.00016438,2]
[363540656,1748758239045,-430.0,0.00016438,2]
[363540657,1748758239056,-430.0,0.00016438,2]
[363540658,1748758239068,-172.40717448,0.00016438,2]
[363540659,1748758239079,-450.14059653,0.00016438,2]
[363540660,1748758239090,-430.0,0.00016438,2]
[363540661,1748758239102,-430.0,0.00016438,2]
[363540662,1748758239112,-430.0,0.00016438,2]
[363540663,1748758239124,-430.0,0.00016438,2]
[363540664,1748758239136,-430.0,0.00016438,2]
[363540665,1748758239148,-430.0,0.00016438,2]
[363540666,1748758239159,-430.0,0.00016438,2]
[363540667,1748758239171,-510.0,0.00016438,2]
[363540668,1748758239182,-430.0,0.00016438,2]
[363540669,1748758239194,-430.0,0.00016438,2]
[363540670,1748758239205,-430.0,0.00016438,2]
[363540671,1748758239217,-430.0,0.00016438,2]
[363540672,1748758239228,-430.0,0.00016438,2]
[363540673,1748758239239,-430.0,0.00016438,2]
[363540674,1748758239250,-268.94458822,0.00016438,2]
[363540675,1748758239261,-430.0,0.00016438,2]
[363540676,1748758239272,-430.0,0.00016438,2]
[363540677,1748758239283,-430.0,0.00016438,2]
[363540678,1748758239294,-345.60729039,0.00016438,2]
[363540679,1748758239305,-457.71069959,0.00016438,2]
[363540680,1748758239316,-430.0,0.00016438,2]
[363540681,1748758239328,-430.0,0.00016438,2]
[363540682,1748758239338,-430.0,0.00016438,2]
[363540683,1748758239350,-430.0,0.00016438,2]
[363540684,1748758239361,-430.0,0.00016438,2]
[363540685,1748758239372,-430.0,0.00016438,2]
[363540686,1748758239383,-430.0,0.00016438,2]
[363540687,1748758239397,-430.0,0.00016438,2]
[363540688,1748758239408,-430.0,0.00016438,2]
[363540689,1748758239420,-430.0,0.00016438,2]
[363540691,1748758239431,-430.0,0.00016438,2]
[363540693,1748758239442,-430.0,0.00016438,2]
[363540694,1748758239457,-430.0,0.00016438,2]
[363540695,1748758239469,-5089.99,0.00016438,2]
[363540696,1748758239480,-969.35,0.00016438,2]
[363540697,1748758239491,-1428.53,0.00016438,2]
[363540698,1748758239502,-430.0,0.00016438,2]
[363540699,1748758239515,-430.0,0.00016438,2]
[363540700,1748758239527,-400.0,0.00016438,2]
[363540701,1748758239539,-567.18474464,0.00016438,2]
[363540702,1748758239550,-430.0,0.00016438,2]
[363540703,1748758239563,-430.0,0.00016438,2]
[363540704,1748758239575,-375.64,0.00016438,2]
[363540705,1748758239587,-430.0,0.00016438,2]
[363540706,1748758239599,-430.0,0.00016438,2]
[363540707,1748758239610,-430.0,0.00016438,2]
[363540708,1748758239620,-430.0,0.00016438,2]
[363540709,1748758239630,-206.77705492,0.00016438,2]
[363540710,1748758239641,-214.62,0.00016438,2]
[363540711,1748758239651,-631.35,0.00016438,2]
[363540712,1748758239661,-439.73,0.00016438,2]
[363540713,1748758239671,-430.0,0.00016438,2]
[363540714,1748758239680,-430.0,0.00016438,2]
[363540715,1748758239691,-578.96178544,0.00016438,2]
[363540716,1748758239701,-430.0,0.00016438,2]
[363540717,1748758239711,-430.0,0.00016438,2]
[363540718,1748758239721,-430.0,0.00016438,2]
[363540719,1748758239928,-621.65,0.00016438,2]
[363540720,1748758239945,-430.0,0.00016438,2]
[363540721,1748758239956,-430.0,0.00016438,2]
[363540722,1748758239966,-430.0,0.00016438,2]
[363540723,1748758239978,-430.0,0.00016438,2]
[363540724,1748758239989,-430.0,0.00016438,2]
[363540725,1748758239999,-430.0,0.00016438,2]
[363540726,1748758240009,-430.0,0.00016438,2]
[363540727,1748758240018,-430.0,0.00016438,2]
[363540728,1748758240026,-501.36465317,0.00016438,2]
[363540729,1748758240036,-430.0,0.00016438,2]
[363540730,1748758240045,-430.0,0.00016438,2]
[363540731,1748758240055,-430.0,0.00016438,2]
[363540732,1748758240065,-430.0,0.00016438,2]
[363540733,1748758240075,-430.0,0.00016438,2]
[363540734,1748758240086,-430.0,0.00016438,2]
[363540735,1748758240096,-430.0,0.00016438,2]
[363540736,1748758240106,-430.0,0.00016438,2]
[363540737,1748758240117,-430.0,0.00016438,2]
[363540738,1748758240127,-430.0,0.00016438,2]
[363540740,1748758240137,-500.73,0.00016438,2]
[363540741,1748758240147,-430.0,0.00016438,2]
[363540742,1748758240157,-430.0,0.00016438,2]
[363540743,1748758240166,-430.0,0.00016438,2]
[363540745,1748758240177,-430.0,0.00016438,2]
[363540747,1748758240187,-430.0,0.00016438,2]
[363540749,1748758240196,-430.0,0.00016438,2]
[363540750,1748758240206,-430.0,0.00016438,2]
[363540751,1748758240216,-430.0,0.00016438,2]
[363540752,1748758240225,-765.07,0.00016438,2]
[363540753,1748758240235,-430.0,0.00016438,2]
[363540755,1748758240245,-430.0,0.00016438,2]
[363540757,1748758240255,-430.0,0.00016438,2]
[363540758,1748758240264,-430.0,0.00016438,2]
[363540759,1748758240274,-430.0,0.00016438,2]
[363540760,1748758240284,-430.0,0.00016438,2]
[363540761,1748758240300,-430.0,0.00016438,2]
[363540762,1748758240310,-438.51435917,0.00016438,2]
[363540763,1748758240320,-430.0,0.00016438,2]
[363540764,1748758240330,-430.0,0.00016438,2]
[363540765,1748758240340,-578.95,0.00016438,2]
[363540766,1748758240350,-430.0,0.00016438,2]
[363540767,1748758240362,-430.0,0.00016438,2]
[363540768,1748758240382,-430.0,0.00016438,2]
[363540769,1748758240393,-430.0,0.00016438,2]
[363540770,1748758240403,-1206.21,0.00016438,2]
[363540771,1748758240412,-426.80130533,0.00016438,2]
[363540772,1748758240422,-430.0,0.00016438,2]
[363540773,1748758240432,-1027.68,0.00016438,2]
[363540774,1748758240442,-430.0,0.00016438,2]
[363540775,1748758240453,-1160.36,0.00016438,2]
[363540776,1748758240464,-430.0,0.00016438,2]
[363540777,1748758240473,-430.0,0.00016438,2]
[363540778,1748758240483,-430.0,0.00016438,2]
[363540779,1748758240495,-430.0,0.00016438,2]
[363540780,1748758240505,-430.0,0.00016438,2]
[363540781,1748758240515,-430.0,0.00016438,2]
[363540782,1748758240524,-430.0,0.00016438,2]
[363540784,1748758240535,-430.0,0.00016438,2]
[363540786,1748758240545,-313.26789901,0.00016438,2]
[363540788,1748758240555,-430.0,0.00016438,2]
[363540790,1748758240565,-622.09,0.00016438,2]
[363540792,1748758240575,-430.0,0.00016438,2]
[363540794,1748758240584,-430.0,0.00016438,2]
[363540796,1748758240594,-430.0,0.00016438,2]
[363540798,1748758240603,-1594.13,0.00016438,2]
[363540800,1748758240613,-430.0,0.00016438,2]
[363540801,1748758240623,-430.0,0.00016438,2]
[363540802,1748758240634,-430.0,0.00016438,2]
[363540803,1748758240644,-430.0,0.00016438,2]
[363540804,1748758240654,-754.86,0.00016438,2]
[363540805,1748758240663,-483.75,0.00016438,2]
[363540806,1748758240673,-192.0,0.0001651,2]
[363540807,1748758240682,-2857.8,0.0001651,2]
[363540808,1748758240692,-420.0,0.00016574,2]
[363540809,1748758240702,-430.0,0.00016712,2]
[363540810,1748758240711,-430.0,0.00016712,2]
[363540811,1748758240721,-215.70925059,0.00016712,2]
[363540812,1748758240731,-430.0,0.00016712,2]
[363540813,1748758240740,-282.23150538,0.00016712,2]
[363540814,1748758240750,-430.0,0.00016712,2]
[363540815,1748758240760,-556.00547333,0.00016712,2]
[363540816,1748758240770,-430.0,0.00016712,2]
[363540817,1748758240781,-430.0,0.00016712,2]
[363540818,1748758240791,-430.0,0.00016712,2]
[363540819,1748758240800,-430.0,0.00016712,2]
[363540820,1748758240810,-363.93507252,0.00016712,2]
[363540821,1748758240820,-430.0,0.00016712,2]
[363540822,1748758240830,-399.00858467,0.00016712,2]
[363540823,1748758240840,-430.0,0.00016712,2]
[363540824,1748758240850,-430.0,0.00016712,2]
[363540825,1748758240860,-430.0,0.00016712,2]
[363540826,1748758240870,-430.0,0.00016712,2]
[363540827,1748758240880,-430.0,0.00016712,2]
[363540828,1748758240890,-430.0,0.00016712,2]
[363540829,1748758240901,-430.0,0.00016712,2]
[363540830,1748758240911,-430.0,0.00016712,2]
[363540831,1748758240921,-430.0,0.00016712,2]
[363540832,1748758240931,-417.67945617,0.00016712,2]
[363540833,1748758240942,-430.0,0.00016712,2]
[363540834,1748758240953,-437.60808724,0.00016712,2]
[363540835,1748758240962,-430.0,0.00016712,2]
[363540836,1748758240972,-430.0,0.00016712,2]
[363540837,1748758240982,-430.0,0.00016712,2]
[363540838,1748758240992,-430.0,0.00016712,2]
[363540839,1748758241001,-310.0,0.00016712,2]
[363540840,1748758241011,-540.48619459,0.00016712,2]
[363540841,1748758241021,-430.0,0.00016712,2]
[363540842,1748758241031,-430.0,0.00016712,2]
[363540843,1748758241041,-5089.99,0.00016712,2]
[363540844,1748758241051,-969.35,0.00016712,2]
[363540845,1748758241060,-1428.53,0.00016712,2]
[363540846,1748758241070,-430.0,0.00016712,2]
[363540847,1748758241079,-430.0,0.00016712,2]
[363540848,1748758241088,-430.0,0.00016712,2]
[363540849,1748758241098,-430.0,0.00016712,2]
[363540850,1748758241107,-430.0,0.00016712,2]
[363540851,1748758241116,-430.0,0.00016712,2]
[363540852,1748758241125,-430.0,0.00016712,2]
[363540853,1748758241135,-631.35,0.00016712,2]
[363540854,1748758241146,-439.73,0.00016712,2]
[363540855,1748758241155,-430.0,0.00016712,2]
[363540856,1748758241165,-430.0,0.00016712,2]
[363540857,1748758241175,-430.0,0.00016712,2]
[363540858,1748758241184,-430.0,0.00016712,2]
[363540859,1748758241194,-430.0,0.00016712,2]
[363540860,1748758241203,-621.65,0.00016712,2]
[363540861,1748758241212,-430.0,0.00016712,2]
[363540862,1748758241222,-430.0,0.00016712,2]
[363540863,1748758241231,-430.0,0.00016712,2]
[363540864,1748758241241,-430.0,0.00016712,2]
[363540865,1748758241251,-430.0,0.00016712,2]
[363540866,1748758241260,-430.0,0.00016712,2]
[363540867,1748758241269,-430.0,0.00016712,2]
[363540868,1748758241279,-430.0,0.00016712,2]
[363540869,1748758241288,-430.0,0.00016712,2]
[363540870,1748758241298,-430.0,0.00016712,2]
[363540871,1748758241307,-386.03243388,0.00016712,2]
[363540872,1748758241317,-430.0,0.00016712,2]
[363540873,1748758241327,-430.0,0.00016712,2]
[363540874,1748758241337,-430.0,0.00016712,2]
[363540875,1748758241346,-500.73,0.00016712,2]
[363540876,1748758241356,-430.0,0.00016712,2]
[363540877,1748758241366,-430.0,0.00016712,2]
[363540878,1748758241375,-456.56244267,0.00016712,2]
[363540879,1748758241385,-430.0,0.00016712,2]
[363540880,1748758241396,-430.0,0.00016712,2]
[363540881,1748758241406,-430.0,0.00016712,2]
[363540882,1748758241415,-765.07,0.00016712,2]
[363540883,1748758241426,-430.0,0.00016712,2]
[363540884,1748758241435,-430.0,0.00016712,2]
[363540885,1748758241445,-430.0,0.00016712,2]
[363540886,1748758241460,-430.0,0.00016712,2]
[363540887,1748758241470,-430.0,0.00016712,2]
[363540888,1748758241479,-430.0,0.00016712,2]
[363540889,1748758241489,-430.0,0.00016712,2]
[363540890,1748758241498,-430.0,0.00016712,2]
[363540891,1748758241508,-578.95,0.00016712,2]
[363540892,1748758241517,-430.0,0.00016712,2]
[363540893,1748758241527,-430.0,0.00016712,2]
[363540894,1748758241536,-430.0,0.00016712,2]
[363540895,1748758241546,-1206.21,0.00016712,2]
[363540896,1748758241557,-430.0,0.00016712,2]
[363540897,1748758241566,-1027.68,0.00016712,2]
[363540898,1748758241576,-430.0,0.00016712,2]
[363540899,1748758241585,-1160.36,0.00016712,2]
[363540900,1748758241595,-430.0,0.00016712,2]
[363540901,1748758241604,-430.0,0.00016712,2]
[363540902,1748758241614,-430.0,0.00016712,2]
[363540903,1748758241623,-430.0,0.00016712,2]
[363540904,1748758241632,-430.0,0.00016712,2]
[363540905,1748758241642,-430.0,0.00016712,2]
[363540906,1748758241651,-430.0,0.00016712,2]
[363540907,1748758241660,-430.0,0.00016712,2]
[363540908,1748758241670,-622.09,0.00016712,2]
[363540909,1748758241679,-430.0,0.00016712,2]
[363540910,1748758241688,-430.0,0.00016712,2]
[363540911,1748758241698,-1594.13,0.00016712,2]
[363540912,1748758241708,-430.0,0.00016712,2]
[363540913,1748758241717,-430.0,0.00016712,2]
[363540914,1748758241727,-470.0,0.00016712,2]
[363540915,1748758241737,-430.0,0.00016712,2]
[363540916,1748758241745,-754.86,0.00016712,2]
[363540917,1748758241755,-483.75,0.00016712,2]
[363540918,1748758241764,-360.0,0.00016738,2]
[363540919,1748758241773,-1680.0,0.00016822,2]
[363540920,1748758241783,-1007.59598126,0.000169,2]
[363540921,1748758241792,-500.0,0.00016948,2]
[363540922,1748758241802,-430.0,0.00016986,2]
[363540923,1748758241811,-430.0,0.00016986,2]
[363540924,1748758241821,-430.0,0.00016986,2]
[363540925,1748758241830,-430.0,0.00016986,2]
[363540926,1748758241840,-430.0,0.00016986,2]
[363540927,1748758241850,-430.0,0.00016986,2]
[363540928,1748758241860,-430.0,0.00016986,2]
[363540929,1748758241870,-275.90909246,0.00016986,2]
[363540930,1748758241880,-430.0,0.00016986,2]
[363540931,1748758241890,-430.0,0.00016986,2]
[363540932,1748758241899,-430.0,0.00016986,2]
[363540933,1748758241909,-444.76230826,0.00016986,2]
[363540934,1748758241919,-430.0,0.00016986,2]
[363540935,1748758241929,-430.0,0.00016986,2]
[363540936,1748758241939,-430.0,0.00016986,2]
[363540937,1748758241950,-430.0,0.00016986,2]
[363540938,1748758241959,-430.0,0.00016986,2]
[363540939,1748758241971,-430.0,0.00016986,2]
[363540940,1748758241980,-430.0,0.00016986,2]
[363540941,1748758241990,-430.0,0.00016986,2]
[363540942,1748758241999,-430.0,0.00016986,2]
[363540943,1748758242008,-430.0,0.00016986,2]
[363540944,1748758242018,-5089.99,0.00016986,2]
[363540945,1748758242027,-969.35,0.00016986,2]
[363540946,1748758242037,-1428.53,0.00016986,2]
[363540947,1748758242047,-430.0,0.00016986,2]
[363540948,1748758242056,-430.0,0.00016986,2]
[363540949,1748758242066,-430.0,0.00016986,2]
[363540950,1748758242075,-430.0,0.00016986,2]
[363540951,1748758242085,-430.0,0.00016986,2]
[363540952,1748758242095,-430.0,0.00016986,2]
[363540953,1748758242104,-631.35,0.00016986,2]
[363540954,1748758242114,-439.73,0.00016986,2]
[363540955,1748758242124,-430.0,0.00016986,2]
[363540956,1748758242133,-430.0,0.00016986,2]
[363540957,1748758242143,-430.0,0.00016986,2]
[363540958,1748758242153,-430.0,0.00016986,2]
[363540959,1748758242163,-430.0,0.00016986,2]
[363540960,1748758242173,-621.65,0.00016986,2]
[363540961,1748758242183,-430.0,0.00016986,2]
[363540962,1748758242193,-430.0,0.00016986,2]
[363540963,1748758242202,-430.0,0.00016986,2]
[363540964,1748758242212,-430.0,0.00016986,2]
[363540965,1748758242222,-430.0,0.00016986,2]
[363540966,1748758242231,-430.0,0.00016986,2]
[363540967,1748758242240,-430.0,0.00016986,2]
[363540968,1748758242250,-430.0,0.00016986,2]
[363540969,1748758242260,-430.0,0.00016986,2]
[363540970,1748758242269,-430.0,0.00016986,2]
[363540971,1748758242279,-430.0,0.00016986,2]
[363540972,1748758242290,-500.73,0.00016986,2]
[363540973,1748758242302,-430.0,0.00016986,2]
[363540974,1748758242312,-430.0,0.00016986,2]
[363540975,1748758242322,-430.0,0.00016986,2]
[363540976,1748758242331,-430.0,0.00016986,2]
[363540977,1748758242341,-765.07,0.00016986,2]
[363540978,1748758242351,-430.0,0.00016986,2]
[363540979,1748758242360,-465.0,0.00016986,2]
[363540980,1748758242370,-430.0,0.00016986,2]
[363540981,1748758242380,-430.0,0.00016986,2]
[363540982,1748758242390,-430.0,0.00016986,2]
[363540983,1748758242400,-430.0,0.00016986,2]
[363540984,1748758242410,-430.0,0.00016986,2]
[363540985,1748758242419,-578.95,0.00016986,2]
[363540986,1748758242429,-430.0,0.00016986,2]
[363540987,1748758242439,-430.0,0.00016986,2]
[363540988,1748758242448,-430.0,0.00016986,2]
[363540989,1748758242463,-1206.21,0.00016986,2]
[363540990,1748758242473,-430.0,0.00016986,2]
[363540991,1748758242483,-1027.68,0.00016986,2]
[363540992,1748758242495,-1160.36,0.00016986,2]
[363540993,1748758242506,-430.0,0.00016986,2]
[363540994,1748758242517,-430.0,0.00016986,2]
[363540995,1748758242527,-281.45044857,0.00016986,2]
[363540996,1748758242538,-430.0,0.00016986,2]
[363540997,1748758242548,-430.0,0.00016986,2]
[363540998,1748758242557,-430.0,0.00016986,2]
[363540999,1748758242567,-522.92107756,0.00016986,2]
[363541000,1748758242576,-430.0,0.00016986,2]
[363541001,1748758242586,-622.09,0.00016986,2]
[363541002,1748758242595,-430.0,0.00016986,2]
[363541003,1748758242605,-506.38224862,0.00016986,2]
[363541004,1748758242615,-1594.13,0.00016986,2]
[363541005,1748758242625,-213.84600202,0.00016986,2]
[363541006,1748758242635,-430.0,0.00016986,2]
[363541007,1748758242645,-430.0,0.00016986,2]
[363541008,1748758242655,-754.86,0.00016986,2]
[363541009,1748758242664,-165.52169345,0.0001707,2]
[363541010,1748758242674,-500.0,0.0001707,2]
[363541011,1748758242683,-625.62677359,0.0001707,2]
[363541012,1748758242693,-501.06732276,0.0001707,2]
[363541013,1748758242702,-1007.595981,0.00017141,2]
[363541014,1748758242711,-524.37848364,0.0001726,2]
[363541015,1748758242721,-430.0,0.0001726,2]
[363541016,1748758242731,-430.0,0.0001726,2]
[363541017,1748758242740,-430.0,0.0001726,2]
[363541018,1748758242750,-471.26695898,0.0001726,2]
[363541019,1748758242759,-430.0,0.0001726,2]
[363541020,1748758242768,-430.0,0.0001726,2]
[363541021,1748758242778,-430.0,0.0001726,2]
[363541022,1748758242787,-430.0,0.0001726,2]
[363541023,1748758242797,-430.0,0.0001726,2]
[363541024,1748758242806,-430.0,0.0001726,2]
[363541025,1748758242815,-430.0,0.0001726,2]
[363541026,1748758242825,-430.0,0.0001726,2]
[363541027,1748758242834,-430.0,0.0001726,2]
[363541028,1748758242844,-430.0,0.0001726,2]
[363541029,1748758242853,-430.0,0.0001726,2]
[363541030,1748758242864,-430.0,0.0001726,2]
[363541031,1748758242873,-5089.99,0.0001726,2]
[363541032,1748758242883,-969.35,0.0001726,2]
[363541033,1748758242893,-1428.53,0.0001726,2]
[363541034,1748758242903,-430.0,0.0001726,2]
[363541035,1748758242912,-430.0,0.0001726,2]
[363541036,1748758242922,-430.0,0.0001726,2]
[363541037,1748758242931,-430.0,0.0001726,2]
[363541038,1748758242941,-430.0,0.0001726,2]
[363541039,1748758242951,-430.0,0.0001726,2]
[363541040,1748758242961,-631.35,0.0001726,2]
[363541041,1748758242970,-439.73,0.0001726,2]
[363541042,1748758242980,-430.0,0.0001726,2]
[363541043,1748758242989,-430.0,0.0001726,2]
[363541044,1748758242999,-430.0,0.0001726,2]
[363541045,1748758243009,-430.0,0.0001726,2]
[363541046,1748758243018,-621.65,0.0001726,2]
[363541047,1748758243028,-430.0,0.0001726,2]
[363541048,1748758243037,-430.0,0.0001726,2]
[363541049,1748758243047,-430.0,0.0001726,2]
[363541050,1748758243056,-430.0,0.0001726,2]
[363541051,1748758243066,-430.0,0.0001726,2]
[363541052,1748758243076,-430.0,0.0001726,2]
[363541053,1748758243086,-430.0,0.0001726,2]
[363541054,1748758243096,-430.0,0.0001726,2]
[363541055,1748758243106,-430.0,0.0001726,2]
[363541057,1748758243116,-430.0,0.0001726,2]
[363541058,1748758243126,-500.73,0.0001726,2]
[363541059,1748758243136,-430.0,0.0001726,2]
[363541061,1748758243146,-430.0,0.0001726,2]
[363541063,1748758243155,-430.0,0.0001726,2]
[363541064,1748758243165,-430.0,0.0001726,2]
[363541067,1748758243175,-765.07,0.0001726,2]
[363541068,1748758243184,-430.0,0.0001726,2]
[363541070,1748758243194,-430.0,0.0001726,2]
[363541071,1748758243203,-430.0,0.0001726,2]
[363541072,1748758243213,-430.0,0.0001726,2]
[363541073,1748758243223,-204.98,0.0001726,2]
[363541079,1748758243352,-430.0,0.0001726,2]
[363541080,1748758243363,-578.95,0.0001726,2]
[363541081,1748758243373,-430.0,0.0001726,2]
[363541082,1748758243383,-430.0,0.0001726,2]
[363541083,1748758243393,-1206.21,0.0001726,2]
[363541084,1748758243403,-1027.68,0.0001726,2]
[363541085,1748758243413,-1160.36,0.0001726,2]
[363541086,1748758243423,-410.53567467,0.0001726,2]
[363541087,1748758243433,-430.0,0.0001726,2]
[363541088,1748758243442,-430.0,0.0001726,2]
[363541089,1748758243453,-430.0,0.0001726,2]
[363541090,1748758243464,-430.0,0.0001726,2]
[363541091,1748758243474,-622.09,0.0001726,2]
[363541092,1748758243484,-430.0,0.0001726,2]
[363541093,1748758243493,-1594.13,0.0001726,2]
[363541094,1748758243503,-430.0,0.0001726,2]
[363541095,1748758243512,-754.86,0.0001726,2]
[363541096,1748758243521,-1007.595981,0.00017383,2]
[363541097,1748758243531,-1000.0,0.00017496,2]
[363541098,1748758243541,-430.0,0.00017534,2]
[363541099,1748758243550,-430.0,0.00017534,2]
[363541100,1748758243560,-430.0,0.00017534,2]
[363541101,1748758243570,-430.0,0.00017534,2]
[363541102,1748758243579,-430.0,0.00017534,2]
[363541103,1748758243590,-430.0,0.00017534,2]
[363541104,1748758243599,-430.0,0.00017534,2]
[363541105,1748758243609,-430.0,0.00017534,2]
[363541106,1748758243619,-448.76827934,0.00017534,2]
[363541108,1748758243628,-430.0,0.00017534,2]
[363541110,1748758243637,-430.0,0.00017534,2]
[363541111,1748758243646,-173.94,0.00017534,2]
[363541112,1748758243655,-430.0,0.00017534,2]
[363541113,1748758243664,-562.82168232,0.00017534,2]
[363541114,1748758243674,-5089.99,0.00017534,2]
[363541115,1748758243684,-969.35,0.00017534,2]
[363541116,1748758243694,-1428.53,0.00017534,2]
[363541117,1748758243703,-430.0,0.00017534,2]
[363541118,1748758243714,-430.0,0.00017534,2]
[363541119,1748758243724,-509.40951247,0.00017534,2]
[363541120,1748758243734,-430.0,0.00017534,2]
[363541121,1748758243744,-430.0,0.00017534,2]
[363541122,1748758243755,-430.0,0.00017534,2]
[363541123,1748758243765,-631.35,0.00017534,2]
[363541124,1748758243775,-439.73,0.00017534,2]
[363541125,1748758243785,-430.0,0.00017534,2]